Cogmind - Beta 16 @@@ ROGUE MODE // 2025.11.17 @ 18:35:20 Player: ClassActJerk Result: Destroyed by H-61 Shepherd with Heavy Assault Cannon Performance ------------- Evolutions (4) 2000 Regions Visited (5) 1000 Robots Destroyed (40) 200 Value Destroyed (1180) 1180 Prototype IDs (3) 60 Alien Tech Used (0) 0 Bonus (0) 0 TOTAL SCORE: 4440 Bonus ------- None Cogmind --------- Core Integrity 0/850 Matter 46/300 Energy 73/100 System Corruption 2% Temperature Cool (0) Movement Core (350) Ox6 Location -6/Factory Parts ------- > --- POWER (2) -------- (None) > --- PROPULSION (4) --- (None) > --- UTILITY (6) ------ Large Storage Unit > --- WEAPON (3) ------- (None) > --- INVENTORY (15) --- Light Nuclear Core Enhanced Nuclear Core Light Treads Launcher Guidance Computer Faulty Advanced EMP Blaster Peak State ------------ > --- POWER ------------ Improved Ion Engine Heavy Ion Engine > --- PROPULSION ------- Light Treads Light Treads Light Treads Advanced Treads > --- UTILITY ---------- Large Storage Unit Compact Matter Pod Seismic Detector Launcher Guidance Computer Light Armor Plating System Shield > --- WEAPON ----------- Flak Cannon Flak Cannon Advanced EMP Blaster > --- INVENTORY -------- Light Nuclear Core Light Angular Momentum Engine Light Treads Light Treads Launcher Guidance Computer Heavy Assault Rifle Improved Heavy Machine Gun Assault Cannon Advanced EMP Blaster [Rating: 36] Favorites ----------- Power Light Ion Engine Engine Light Ion Engine Propulsion Light Treads Treads Light Treads Utility Large Storage Unit Device Seismic Detector Storage Large Storage Unit Processor Transport Network Coupler Hackware System Shield Protection Light Armor Plating Weapon Medium Laser Energy Gun Medium Laser Ballistic Gun Heavy Assault Rifle Ballistic Cannon Flak Cannon Launcher Advanced EMP Blaster Build | -11 -10 -9 -8 -7 -6 ------- Run | Yrd Mat Mat Mat Fac Fac Slots Evolved 8 | . . 2 2 2 2 Power 1 | . . . . 1 . Propulsion 2 | . . . 2 . . Utility 4 | . . 1 . 1 2 Weapon 1 | . . 1 . . . Parts Attached 48 | 6 5 12 11 4 10 Power 6 | 1 1 1 . 2 1 Engine 6 | 1 1 1 . 2 1 Core . | . . . . . . Reactor . | . . . . . . Propulsion 16 | 2 2 4 6 1 1 Treads 16 | 2 2 4 6 1 1 Leg . | . . . . . . Wheel . | . . . . . . Hover . | . . . . . . Flight . | . . . . . . Utility 13 | 1 2 3 2 1 4 Device 1 | . . . . . 1 Storage 3 | 1 1 . 1 . . Processor 2 | . 1 . . . 1 Hackware 2 | . . . . 1 1 Protection 5 | . . 3 1 . 1 Artifact . | . . . . . . Weapon 13 | 2 . 4 3 . 4 Energy Gun 2 | 1 . 1 . . . Energy Cannon . | . . . . . . Ballistic Gun 6 | 1 . 3 . . 2 Ballistic Cannon 4 | . . . 3 . 1 Launcher 1 | . . . . . 1 Special Weapon . | . . . . . . Impact Weapon . | . . . . . . Slashing Weapon . | . . . . . . Piercing Weapon . | . . . . . . Special Melee Weapon . | . . . . . . Unidentified Prototypes 3 | . . . . 1 2 Parts Lost 21 | . . . 1 . 20 Power 3 | . . . . . 3 Propulsion 5 | . . . . . 5 Utility 7 | . . . 1 . 6 Weapon 6 | . . . . . 6 Highest Loss Streak 16 | . . . 1 . 16 To Critical Strikes . | . . . . . . Average Backups 9 | 1 3 9 12 10 10 Power 1 | 1 1 1 3 1 1 Propulsion 3 | . 1 4 3 3 2 Utility 2 | . . 2 3 2 1 Weapon 2 | . 1 1 2 4 4 Tool/Special . | . . . . . . Unused Backups 10 | 1 . 3 . . 6 Power 4 | . . 1 . . 3 Propulsion 1 | . . . . . 1 Utility 2 | . . 1 . . 1 Weapon 3 | 1 . 1 . . 1 Tool/Special . | . . . . . . Average Slot Usage (%) 95 | . 93 99 98 97 88 Engine 11 | . 14 11 9 13 10 Treads 26 | . 28 22 35 30 22 Device 1 | . . . . . 4 Storage 12 | . 14 11 10 15 12 Processor 4 | . 8 8 . . 2 Hackware 1 | . . . . 5 5 Protection 10 | . . 13 15 7 9 Energy Gun 8 | . 14 13 6 . . Ballistic Gun 10 | . 14 19 9 . . Ballistic Cannon 7 | . . . 10 23 14 Peak Build Rating 36 | 6 7 15 22 28 36 Average Rating 17 | 4 6 12 18 27 29 On Entrance 12 | . 6 7 14 22 28 Avg Prop Armor Cover (%) . | . . . . . . Naked Turns . | . . . . . . Heaviest Build 58 | 11 26 43 50 54 58 Greatest Support 82 | 40 40 40 82 82 82 Greatest Overweight (x) 11 | . . 1 . . 11 Average Overweight (x) . | . . . . . . Largest Inventory Capacity 15 | 8 15 15 15 15 15 Average Capacity 14 | 7 11 15 15 15 15 Most Carried 15 | 6 8 15 14 14 13 Average Carried 9 | 1 3 9 12 10 10 Final Capacity 15 | 8 15 15 15 15 15 Final Carried 14 | 1 8 13 14 10 5 Class Distribution -------------------- 47% | Scavenger-Tank 24% | Tank 22% | Mutant Dominant Class ---------------- Mutant | -10/Materials Tank | -9/Materials Scavenger-Tank | -8/Materials Scavenger-Tank | -7/Factory Scavenger-Tank | -6/Factory Resources | -11 -10 -9 -8 -7 -6 ----------- Run | Yrd Mat Mat Mat Fac Fac Matter Collected 1132 | 260 23 313 387 12 137 Remotely . | . . . . . . Salvage Created 1327 | . 132 655 325 23 192 Parts 95 | . 9 53 17 2 14 Haulers Intercepted 3 | . . 2 1 . . Recyclers Shooed 2 | . . 2 . . . Parts Field Recycled . | . . . . . . Retrieved Matter . | . . . . . . Parts Self-Destructed . | . . . . . . Prevented . | . . . . . . Parts Restored . | . . . . . . Kills | -11 -10 -9 -8 -7 -6 ------- Run | Yrd Mat Mat Mat Fac Fac Combat Hostiles Destroyed 30 | . 4 12 6 3 5 Guns 21 | . 4 12 4 . 1 Cannons 9 | . . . 2 3 4 Classes Destroyed 7 | . 3 3 1 . . Worker 2 | . 1 . . . 1 Builder 4 | . . . 1 . 3 Hauler 3 | . . 2 1 . . Mechanic 1 | . . 1 . . . Swarmer 7 | . 2 . . 3 2 Grunt 14 | . 2 6 4 . 2 Sentry 9 | . . 6 2 . 1 Best Kill Streak 3 | . 2 2 2 3 3 Combat Bots Only 3 | . 2 2 2 3 2 Max Kills in Single Turn 2 | . 1 1 2 1 2 Gunslinging . | . . . . . . Exploded . | . . . . . . Melee . | . . . . . . Uniques/NPCs Destroyed . | . . . . . . Combat | -11 -10 -9 -8 -7 -6 -------- Run | Yrd Mat Mat Mat Fac Fac Hostile Shots Fired 494 | . 28 69 42 22 333 Missed 154 | . 6 19 14 6 109 Hits 340 | . 22 50 28 16 224 Projectile 340 | . 22 50 28 16 224 Critical Strikes 9 | . 1 2 2 . 4 Damage Taken 4518 | . 216 692 435 253 2922 Core 1009 | . 36 70 . 31 872 Absorbed by Shields . | . . . . . . Regen/Repaired (Parts) 61 | . . 61 . . . Core Remaining (%) 92 | 100 85 82 100 95 . Volleys Fired 104 | . 13 37 20 6 28 Largest 3 | . 2 3 3 3 3 Hottest 120 | . 70 120 110 104 104 Shots Fired 271 | . 26 111 55 18 61 Gun 185 | . 26 111 40 . 8 Cannon 83 | . . . 15 18 50 Launcher 3 | . . . . . 3 Special . | . . . . . . Kinetic 188 | . 13 61 38 18 58 Thermal 80 | . 13 50 17 . . Explosive . | . . . . . . Electromagnetic 3 | . . . . . 3 Robot Hit Streak 18 | . 5 18 12 3 7 Robot Miss Streak 19 | . 2 3 5 19 5 Penetration Max . | . . . . . . Secondary Targets 2 | . 1 . . . 1 Max Gunslinging Chain 1 | . 1 . . . 1 Shots Hit Robots 183 | . 16 72 38 9 48 Core Hits 101 | . 8 31 23 9 30 Critical Kills 1 | . . 1 . . . Critical Parts Destroyed . | . . . . . . Critical Strikes 3 | . . 2 1 . . Burn 2 | . . 1 1 . . Destroy 1 | . . 1 . . . Melee Attacks . | . . . . . . Impact . | . . . . . . Slashing . | . . . . . . Piercing . | . . . . . . Sneak Attacks . | . . . . . . Combat Hostiles . | . . . . . . Follow-up Attacks . | . . . . . . Damage Inflicted 2807 | . 195 926 656 144 886 Guns 1655 | . 195 926 413 . 121 Cannons 872 | . . . 243 144 485 Explosions 280 | . . . . . 280 Melee . | . . . . . . Ramming . | . . . . . . Kinetic 1772 | . 68 469 485 144 606 Thermal 848 | . 127 457 171 . 93 Explosive . | . . . . . . Electromagnetic 187 | . . . . . 187 Impact . | . . . . . . Slashing . | . . . . . . Piercing . | . . . . . . Highest Corruption 2 | . . . . . 2 Average Corruption 1 | . . . . . 1 Corruption Purged . | . . . . . . Corruption Blocked . | . . . . . . Effects 3 | . . . . . 3 Message Errors 2 | . . . . . 2 Heat Flow Errors 1 | . . . . . 1 Overload Shots . | . . . . . . Overflow Damage . | . . . . . . Projectiles . | . . . . . . Explosions . | . . . . . . Melee . | . . . . . . Knockbacks 30 | . . . 8 7 15 Impact . | . . . . . . Kinetic 29 | . . . 8 7 14 Secondary 1 | . . . . . 1 Self-Inflicted Damage 53 | . . . . . 53 Shots 3 | . . . . . 3 Rammed . | . . . . . . Targets Rammed . | . . . . . . Kicked . | . . . . . . Crushed . | . . . . . . Highest Temperature 544 | . 120 282 422 48 544 Average Temperature 129 | . 44 83 170 18 244 Received Heat Transfer 1215 | . 72 285 270 . 588 Effects 17 | . . . 3 . 14 Shutdowns 4 | . . . 1 . 3 Energy Bleed 1 | . . . . . 1 Interference 5 | . . . 2 . 3 Matter Decay 2 | . . . . . 2 Short Circuit 1 | . . . . . 1 Damage (minor) 3 | . . . . . 3 Damage (core) 1 | . . . . . 1 Siege Activations . | . . . . . . Martial Activations . | . . . . . . Shielding Activations . | . . . . . . Robots Disrupted . | . . . . . . Combat Hostiles . | . . . . . . Robots Corrupted . | . . . . . . Combat Hostiles . | . . . . . . Parts Fried 1 | . . . . . 1 Impact Corruptions . | . . . . . . Robots Melted . | . . . . . . Combat Hostiles . | . . . . . . Parts Melted 3 | . 2 1 . . . Heat Transferred 2605 | . 370 1443 592 . 200 Parts Sabotaged . | . . . . . . Parts Stolen . | . . . . . . Parts Stripped . | . . . . . . Power Chain Reactions 3 | . . . . . 3 Alert | -11 -10 -9 -8 -7 -6 ------- Run | Yrd Mat Mat Mat Fac Fac Maximum Alert Level . | . . . . . . Low Security (%) 100 | 100 100 100 100 100 100 Level 1 . | . . . . . . Level 2 . | . . . . . . Level 3 . | . . . . . . Level 4 . | . . . . . . Level 5 . | . . . . . . High Security . | . . . . . . Max Security . | . . . . . . Peak Influence 95 | . 50 86 95 60 40 Initial . | . . . . . . Average 14 | . 7 21 20 17 6 Influence Increases 916 | . 105 340 162 70 239 Destroy 0b10 Robot/C 600 | . 80 240 120 60 100 Destroy 0b10 Robot/NC 50 | . 5 15 10 . 20 Destroy Leader 156 | . 20 74 32 10 20 Successful Hack 8 | . . 8 . . . Disable Machine 15 | . . . . . 15 Destroy Structure 12 | . . 3 . . 9 Lose Combat Pursuer 75 | . . . . . 75 Influence Decreases 916 | . 105 340 162 70 239 Time Decay 810 | . 105 340 155 70 140 Lost Part 106 | . . . 7 . 99 Squads Dispatched 5 | . 1 1 1 . 2 Investigation 2 | . . 1 1 . . Extermination 1 | . . . . . 1 Reinforcement 2 | . 1 . . . 1 Assault . | . . . . . . Garrison . | . . . . . . Intercept . | . . . . . . Searches Triggered . | . . . . . . Construction Impeded . | . . . . . . Haulers Reinforced . | . . . . . . Active Scanning Responses . | . . . . . . Cargo Convoy Interrupts . | . . . . . . Stealth | -11 -10 -9 -8 -7 -6 --------- Run | Yrd Mat Mat Mat Fac Fac Distress Signals 4 | . . 3 . . 1 Communications Jammed . | . . . . . . Distress Signals . | . . . . . . Times Spotted 52 | . 8 18 9 3 14 Peak Tracking Total 5 | . 4 3 3 3 5 Tactical Retreats 5 | . . . . . 5 Traps | -11 -10 -9 -8 -7 -6 ------- Run | Yrd Mat Mat Mat Fac Fac Traps Triggered 3 | . . 2 1 . . Indirectly . | . . . . . . Trap Hack Attempts . | . . . . . . Triggered . | . . . . . . Disarmed . | . . . . . . Reprogrammed . | . . . . . . Reused . | . . . . . . Traps Extracted . | . . . . . . Installed . | . . . . . . Triggered . | . . . . . . Machines | -11 -10 -9 -8 -7 -6 ---------- Run | Yrd Mat Mat Mat Fac Fac Machines Disabled 1 | . . . . . 1 Max in Single Turn 1 | . . . . . 1 Machines Repaired . | . . . . . . Machines Dismantled . | . . . . . . Machines Sabotaged . | . . . . . . Overloaded Fab Kills . | . . . . . . Hacking | -11 -10 -9 -8 -7 -6 --------- Run | Yrd Mat Mat Mat Fac Fac Machines Accessed 5 | . . 3 . 2 . Terminals 4 | . . 2 . 2 . Fabricators . | . . . . . . Repair Stations 1 | . . 1 . . . Recycling Units . | . . . . . . Scanalyzers . | . . . . . . Garrison Access . | . . . . . . Total Hacks 13 | . . 9 . 4 . Successful 4 | . . 3 . 1 . Failed 9 | . . 6 . 3 . Catastrophic 1 | . . 1 . . . Database Lockouts . | . . . . . . Manual 7 | . . 6 . 1 . Terminals 10 | . . 6 . 4 . Fabricators . | . . . . . . Repair Stations 3 | . . 3 . . . Recycling Units . | . . . . . . Scanalyzers . | . . . . . . Garrison Access . | . . . . . . Terminal Hacks 2 | . . 1 . 1 . Open DSF 1 | . . . . 1 . Branch Access Points 1 | . . 1 . . . Fabricator Hacks . | . . . . . . Repair Station Hacks 2 | . . 2 . . . Scan Component 1 | . . 1 . . . Repair 1 | . . 1 . . . Recycling Unit Hacks . | . . . . . . Scanalyzer . | . . . . . . Garrison Access Hacks . | . . . . . . Unauthorized Hacks . | . . . . . . Terminals . | . . . . . . Fabricators . | . . . . . . Repair Stations . | . . . . . . Recycling Units . | . . . . . . Scanalyzers . | . . . . . . Garrison Access . | . . . . . . Data Cores Recovered . | . . . . . . Used . | . . . . . . Hacking Detections 2 | . . 1 . 1 . Full Trace Events 1 | . . 1 . . . Feedback Events . | . . . . . . Feedback Blocked . | . . . . . . Robot Schematics Acquired . | . . . . . . Robots Built . | . . . . . . Authchips . | . . . . . . Time . | . . . . . . Total Robot Build Rating . | . . . . . . Part Schematics Acquired . | . . . . . . Parts Built . | . . . . . . Authchips . | . . . . . . Time . | . . . . . . Total Part Build Rating . | . . . . . . Part Studies Acquired . | . . . . . . Parts Repaired 1 | . . 1 . . . Time 32 | . . 32 . . . Parts Recycled . | . . . . . . Recycled Matter . | . . . . . . Retrieved Matter . | . . . . . . Retrieved Components . | . . . . . . Parts Scanalyzed . | . . . . . . Part Schematics Acquired . | . . . . . . Parts Damaged . | . . . . . . Bothacking | -11 -10 -9 -8 -7 -6 ------------ Run | Yrd Mat Mat Mat Fac Fac Used RIF Installer . | . . . . . . Robots Hacked . | . . . . . . Non-combat . | . . . . . . Combat . | . . . . . . Robot Hacks Applied . | . . . . . . Relay Couplers Released . | . . . . . . Fabnet Peak Effective % . | . . . . . . Robots Rewired . | . . . . . . Allies Hacked . | . . . . . . Hacks Repelled . | . . . . . . Allies | -11 -10 -9 -8 -7 -6 -------- Run | Yrd Mat Mat Mat Fac Fac Total Allies . | . . . . . . Largest Group . | . . . . . . Highest-Rated Group . | . . . . . . Highest-Rated Ally . | . . . . . . Total Orders . | . . . . . . Ally Attacks . | . . . . . . Total Damage . | . . . . . . Kills . | . . . . . . Allies Corrupted . | . . . . . . Allies Melted . | . . . . . . Intel | -11 -10 -9 -8 -7 -6 ------- Run | Yrd Mat Mat Mat Fac Fac Active Infowar (turns) 1888 | . 329 901 . . 658 Seismic 658 | . . . . . 658 T.N.C. 1230 | . 329 901 . . . Robot Analysis Total . | . . . . . . Derelict Logs Recovered . | . . . . . . Drone Launches . | . . . . . . Drone Recoveries . | . . . . . . Exploration | -11 -10 -9 -8 -7 -6 ------------- Run | Yrd Mat Mat Mat Fac Fac Turns Passed 3603 | 116 555 1190 673 262 807 Spaces Moved 1285 | 77 267 329 235 103 274 Core 28 | 18 . . . . 10 Treads 1257 | 59 267 329 235 103 264 Legs . | . . . . . . Wheels . | . . . . . . Hover . | . . . . . . Flight . | . . . . . . Fastest Speed 50 | 50 160 160 156 156 155 Average Speed 164 | 134 160 179 156 156 167 Slowest Speed 600 | 160 160 240 160 156 600 Overloaded Moves . | . . . . . . Propulsion Burnouts . | . . . . . . Robots Hopped . | . . . . . . Potential Cave-ins . | . . . . . . Cave-ins Triggered . | . . . . . . Exploration Rate (%) 20 | 6 41 37 28 3 8 Regions Visited 5 Branch Regions . Pre-discovered Areas . | . . . . . . Known Exits Taken . | . . . . . . Unknown Exits Taken 5 | 1 1 1 1 1 . Scrap Searched . | . . . . . . Spaces Dug . | . . . . . . Terrain Destroyed 7 | . . . . . 7 Melee . | . . . . . . Projectile 1 | . . . . . 1 AOE 6 | . . . . . 6 Terrain Rammed . | . . . . . . Walls Destroyed . | . . . . . . Machines Disabled . | . . . . . . Actions | -11 -10 -9 -8 -7 -6 --------- Run | Yrd Mat Mat Mat Fac Fac Total 2582 | 89 371 856 498 192 576 Wait 1057 | . 73 442 214 78 250 Move 1280 | 76 266 328 234 102 274 Hop . | . . . . . . Pick Up 57 | 6 11 22 11 . 7 Fast Attach 2 | 2 . . . . . Attach 38 | 4 1 10 7 4 12 Detach 1 | . . . . . 1 Swap 12 | . 4 3 5 . . Drop 31 | 1 3 14 7 2 4 Fire 104 | . 13 37 20 6 28 Melee . | . . . . . . Ram . | . . . . . . Kick . | . . . . . . Crush . | . . . . . . Escape Stasis . | . . . . . . Rewire . | . . . . . . Trap . | . . . . . . Miscellaneous . | . . . . . . Route ------- -11/Scrapyard -10/Materials (discovered 2 exits: *Mat x2) -9/Materials (discovered 3 exits: [*Mat] / *Min / Sto) -8/Materials -7/Factory -6/Factory History --------- Turn | Location | Event 3 | -11/Scrapyard | Discovered new exit (range 16) 117 | -11/Scrapyard | Entered Materials 308 | -10/Materials | Build established: Mutant 453 | -10/Materials | Discovered new exit (range 10) 648 | -10/Materials | Discovered new exit (range 16) 672 | -10/Materials | Entered another Materials area 672 | -9/Materials | Evolved 2 slots: Utility x1, Weapon x1 785 | -9/Materials | Repaired Med. Armor Plating 1074 | -9/Materials | Identified exit to Mines 1074 | -9/Materials | Identified exit to Storage 1082 | -9/Materials | Build established: Tank 1824 | -9/Materials | Discovered new exit (range 15) 1862 | -9/Materials | Entered another Materials area 1862 | -8/Materials | Evolved 2 slots: Propulsion x2 1884 | -8/Materials | Build established: Scavenger-Tank 2506 | -8/Materials | Discovered new exit (range 16) 2535 | -8/Materials | Entered Factory 2535 | -7/Factory | Evolved 2 slots: Power x1, Utility x1 2748 | -7/Factory | Discovered new exit (range 10) 2797 | -7/Factory | Entered another Factory area 2797 | -6/Factory | Evolved 2 slots: Utility x2 3398 | -6/Factory | Lost 3 parts (1p1n1w) 3563 | -6/Factory | Core integrity fell below 50% 3594 | -6/Factory | Core integrity fell below 20% 3604 | -6/Factory | Destroyed by H-61 Shepherd with Heavy Assault Cannon Last Messages --------------- 03583_ K-01 Serf collects debris. 03586_ U-05 Engineer builds a Wall. 03587_ System Shield destroyed. 03589_ Acquired 1 matter. 03593_ Imp. Heavy Machine Gun destroyed. 03593_ U-05 Engineer builds a Wall. 03594_ Door malfunctions. 03595_ U-05 Engineer lays Concrete. 03595_ H-61 Shepherd calls for reinforcements. 03595_ ALERT: Hostile activity reported, dispatching reinforcements to area. 03596_ U-05 Engineer lays Concrete. 03596_ Com. Matter Pod destroyed. 03597_ U-05 Engineer lays Concrete. 03598_ Adv. EMP Blaster destroyed. 03598_ Critical hit (Blast). 03598_ Knocked back. 03600_ U-05 Engineer lays Concrete. 03602_ U-05 Engineer builds a Wall. 03603_ U-05 Engineer lays Concrete. Map ----- +----------------------------------------------------+ | ????????????????# """ # ## [= #??# == | | ????????????????# """ # """" ## [ #??# | | ????????????????# [# """" ## #??# | | ????????????????# # """" ## #??# | | ????????????????#+##+### """" ## ########/## | | ????????????????# #?# + / | | ????????????????# #?####+### | | ?????????#####+## ##### ## | | ?? ! | | ????# #####+######## ############ | | ????? ??????# ! ######## """ #??????????# | | ?????????????# """ + "T" #??????????# | | ?????????????# """ ##### #??????????# | | ?????????????# """ #???# #??????????# | | ?????????????# #???# """ #??????????# | | ?????????????#############/## """ #??????????# | | ???? ####### ! # """ #??????????# ^ | | ???? + # * #??????????+ | | ???? ##### # """ #??????????# | | ??????????????????# "T" # """ #??????????# | | ??????????????????########### """ #??????????? | | ?????????????????????????##=[ #????????????? | | ???????????????????########u =""" ?????? | | ???????????????????# uH uu """ ??????? | | ???????????????????# Y """ ?????? | | ???????????????????#""" @# %= ####?#??????? | | ???????????????????#"Y ##| ! #???????????? | | ???????????????????#""" ## #???????????? | | ???????????????????# ## #???????????? | | ???????????????????#########!% #???????????? | | ???????????????????????????# #######???????????? | | ???????????????????????????# #?????????????????? | | ???????????????????????????# #?????????????????? | | ???????????????????????????# #?????????????????? | | ???????????????????????????? #?????????????????? | | ???????????????????????????? #?????????????????? | | ???????????????????????????? #?????????????????? | | ???????????????????????????? #?????????????????? | | ?????????????????????????????????????????????????? | | ?????????????????????????????????????????????????? | | ?????????????????????????????????????????????????? | | ?????????????????????????????????????????????????? | | ?????????????????????????????????????????????????? | | ?????????????????????????????????????????????????? | | ?????????????????????????????????????????????????? | | ?????????????????????????????????????????????????? | | ?????????????????????????????????????????????????? | | ?????????????????????????????????????????????????? | | ?????????????????????????????????????????????????? | | ?????????????????????????????????????????????????? | +----------------------------------------------------+ Best States ------------- Heat Dissipation 37 Energy Generation 27 Energy Capacity 445 Matter Stores 440 Matter Capacity 450 Sight Range 16 Terrain Scan Density 10 Armor Coverage 375 Evasion (%) 50 Launcher Accuracy 20 Recoil Reduction 4 Defensive Hacking 10 Item Schematics ----------------- None Robot Schematics ------------------ None Fabricated ------------ Nothing Repaired ---------- Med. Armor Plating | 49% | -9/Materials Studied --------- None Alien Tech Used ----------------- None Achievements -------------- None Challenges ------------ None Game ------ Seed BombImpactAxe Manual? 0 Play Time 00:30:35 Cumulative 28.4 hours Start 2025.11.17 @ 18:09:44 End 2025.11.17 @ 18:35:20 Sessions 1 Manual Loads 0 Difficulty Rogue Special Mode None Game No. 86 Rogue 86 Adventurer 0 Explorer 0 Win Type - Total 0 Types 0/0/0/0/0/0/0/0/0/0 Lore% 7 Gallery% 23 Achievement% 17 Wizard Run 0 Options --------- Layout 1 ASCII 0 Keyboard 0 Movement Mouse Keybinds 0 Fullscreen 1 Font 24/Terminus Map View 50x35 Zoom Use 0% Tactical HUD 1 Map Filters NONE Filters NONE Steam 1 RUN: fae3c20f-a588-40a8-b409-a8c03c57015f